fUSD/lending_fUSD_20250622
["ID","MTS","AMOUNT","RATE_DAILY","PERIOD"]
[366953408,1750599411617,-1413.63798,0.00036488,30]
[366953409,1750599411653,-2261.74679067,0.0003659,35]
[366953410,1750599411680,-3288.99,0.000366,60]
[366953411,1750599411707,-1311.49,0.00036669,30]
[366953412,1750599411733,-1311.49,0.00036669,30]
[366953413,1750599411760,-1413.63798,0.00036688,30]
[366953414,1750599411789,-546.12973015,0.00036788,41]
[366953415,1750599411816,-1050950.68177466,0.000368,120]
[366953416,1750599411843,-1413.63798,0.00036888,30]
[366953417,1750599411869,-206.0,0.000369,30]
[366953418,1750599411897,-1311.49,0.00036943,30]
[366953419,1750599411924,-1311.49,0.00036943,30]
[366953420,1750599411950,-350.0,0.00036951,60]
[366953421,1750599411976,-853.32035707,0.0003697,120]
[366953422,1750599412002,-212.0,0.0003698,120]
[366953423,1750599412031,-156.0,0.0003698,120]
[366953424,1750599412059,-194.355288,0.00036986,120]
[366953425,1750599412085,-212.0,0.0003699,120]
[366953426,1750599412112,-156.0,0.0003699,120]
[366953427,1750599412139,-500.0,0.00037,60]
[366953428,1750599412164,-472.0,0.00037,30]
[366953429,1750599412189,-5020.0,0.00037,117]
[366953430,1750599412221,-153.48,0.00037,31]
[366953431,1750599412252,-153.48,0.00037,31]
[366953432,1750599412284,-153.48,0.00037,31]
[366953433,1750599412318,-153.48,0.00037,31]
[366953434,1750599412349,-153.48,0.00037,31]
[366953435,1750599412380,-153.48,0.00037,31]
[366953436,1750599412412,-153.48,0.00037,31]
[366953437,1750599412439,-150.0,0.00037048,120]
[366953438,1750599412465,-1413.63798,0.00037088,30]
[366953439,1750599412493,-500.0,0.0003715,60]
[366953440,1750599412521,-1453.02780283,0.000372,120]
[366953441,1750599412551,-1453.0278028,0.000372,120]
[366953442,1750599412579,-1453.0278028,0.000372,120]
[366953443,1750599412607,-1453.0278028,0.000372,120]
[366953444,1750599412634,-1453.0278028,0.000372,120]
[366953445,1750599412660,-1311.49,0.00037217,30]
[366953446,1750599412686,-1311.49,0.00037217,30]
[366953447,1750599412713,-500.0,0.0003725,60]
[366953448,1750599412741,-150.0,0.00037281,120]
[366953449,1750599412767,-1413.63798,0.00037288,30]
[366953450,1750599412808,-2261.74679067,0.00037348,36]
[366953451,1750599412833,-500.0,0.0003735,60]
[366953452,1750599412860,-14492.5,0.0003738,30]
[366953453,1750599412887,-500.0,0.0003745,60]
[366953454,1750599412913,-1413.63798,0.00037488,30]
[366953455,1750599412940,-1311.49,0.00037491,30]
[366953456,1750599412965,-1311.49,0.00037491,30]
[366953457,1750599412992,-150.0,0.00037494,120]
[366953458,1750599413017,-3109.68167611,0.000375,90]
[366953459,1750599413050,-10907.57098946,0.000375,120]
[366953460,1750599413078,-500.0,0.000375,60]
[366953461,1750599413104,-66470.0,0.000375,120]
[366953462,1750599413136,-203.0,0.00037614,30]
[366953463,1750599413164,-350.0,0.00037636,60]
[366953464,1750599413200,-280.94,0.00037671,120]
[366953465,1750599413227,-1413.63798,0.00037688,30]
[366953466,1750599413255,-1311.49,0.00037765,30]
[366953467,1750599413281,-1311.49,0.00037765,30]
[366953468,1750599413314,-500.0,0.0003779,60]
[366953469,1750599413340,-8366.06800063,0.00037846,31]
[366953470,1750599413368,-150.0,0.00037862,120]
[366953471,1750599413396,-1413.63798,0.00037888,30]
[366953472,1750599413424,-484.17918541,0.00038,30]
[366953473,1750599413450,-195.46387469,0.00038,30]
[366953474,1750599413477,-375.98420768,0.00038,120]
[366953475,1750599413504,-2783.08292853,0.00038,30]
[366953476,1750599413530,-7069.87,0.00038,30]
[366953477,1750599413560,-1000.0,0.00038,120]
[366953478,1750599413589,-800.0,0.00038,120]
[366953479,1750599413617,-500.0,0.00038,60]
[366953480,1750599413646,-1311.49,0.00038039,30]
[366953481,1750599413673,-1311.49,0.00038039,30]
[366953482,1750599413701,-2000.0,0.00038082,120]
[366953483,1750599413727,-2000.0,0.00038082,120]
[366953484,1750599413756,-2000.0,0.00038082,120]
[366953485,1750599413782,-2000.0,0.00038082,120]
[366953486,1750599413812,-2000.0,0.00038082,120]
[366953487,1750599413840,-2000.0,0.00038082,120]
[366953488,1750599413867,-2000.0,0.00038082,120]
[366953489,1750599413893,-2000.0,0.00038082,120]
[366953490,1750599413919,-2000.0,0.00038082,120]
[366953491,1750599413945,-2000.0,0.00038082,120]
[366953492,1750599413972,-2000.0,0.00038082,120]
[366953493,1750599413997,-2000.0,0.00038082,120]
[366953494,1750599414343,-2000.0,0.00038082,120]
[366953495,1750599414374,-2000.0,0.00038082,120]
[366953496,1750599414403,-2000.0,0.00038082,120]
[366953497,1750599414432,-2000.0,0.00038082,120]
[366953498,1750599414461,-2000.0,0.00038082,120]
[366953499,1750599414489,-2000.0,0.00038082,120]
[366953500,1750599414517,-2000.0,0.00038082,120]
[366953501,1750599414550,-2000.0,0.00038082,120]
[366953502,1750599414579,-2000.0,0.00038082,120]
[366953503,1750599414609,-2000.0,0.00038082,120]
[366953504,1750599414640,-2000.0,0.00038082,120]
[366953505,1750599414671,-2000.0,0.00038082,120]
[366953506,1750599414700,-729.0,0.00038082,120]
[366953507,1750599414729,-1413.63798,0.00038088,30]
[366953508,1750599414773,-2261.74679067,0.00038107,38]
[366953509,1750599414806,-500.0,0.0003815,60]
[366953510,1750599414837,-207.062211,0.00038198,120]
[366953511,1750599414866,-8000.0,0.000382,30]
[366953512,1750599414900,-153.48,0.000382,31]
[366953513,1750599414932,-153.48,0.000382,31]
[366953514,1750599414964,-153.48,0.000382,31]
[366953515,1750599414996,-153.48,0.000382,31]
[366953516,1750599415031,-153.48,0.000382,31]
[366953517,1750599415074,-153.48,0.000382,31]
[366953518,1750599415109,-153.48,0.000382,31]
[366953519,1750599415143,-153.48,0.000382,31]
[366953520,1750599415176,-153.48,0.000382,31]
[366953521,1750599415209,-153.48,0.000382,31]
[366953522,1750599415244,-153.48,0.000382,31]
[366953523,1750599415273,-1413.63798,0.00038288,30]
[366953524,1750599415309,-366.9088758,0.000383,120]
[366953525,1750599415339,-1311.49,0.00038313,30]
[366953526,1750599415368,-1311.49,0.00038313,30]
[366953527,1750599415397,-350.0,0.00038321,60]
[366953528,1750599415426,-1000.0,0.00038356,120]
[366953529,1750599415459,-1000.0,0.00038356,120]
[366953530,1750599415488,-1000.0,0.00038356,120]
[366953531,1750599415516,-1131.83583934,0.00038356,120]
[366953532,1750599415550,-625.00126463,0.000384,33]
[366953533,1750599415577,-206.0,0.0003841,30]
[366953534,1750599415605,-1025.827,0.0003844,43]
[366953535,1750599415636,-1413.63798,0.00038488,30]
[366953536,1750599415663,-202981.16315393,0.000385,120]
[366953537,1750599415690,-73730.97693568,0.000385,120]
[366953538,1750599417032,1000.0,0.00037653,36]
[366953539,1750599417572,1000.0,0.00037653,36]
[366953540,1750599417771,1000.0,0.00037653,36]
[366953541,1750599418084,1000.0,0.00037653,36]
[366953542,1750599418575,1000.0,0.00037653,36]
[366953543,1750599418765,1000.0,0.00037653,36]
[366953544,1750599419132,1000.0,0.00037653,36]
[366953545,1750599419239,1000.0,0.00037653,36]
[366953546,1750599423903,1290.55956234,0.00037653,30]
[366953547,1750599445684,-173.0,0.00038,30]
[366953548,1750599446093,-151.0,0.00038487,30]
[366953549,1750599446122,-156.587,0.00038487,30]
[366953550,1750599446151,-500.0,0.00038487,30]
[366953551,1750599446181,-500.0,0.00038487,30]
[366953552,1750599446207,-162.380719,0.00038487,30]
[366953553,1750599446236,-500.0,0.00038487,30]
[366953554,1750599446265,-168.3888056,0.00038487,30]
[366953555,1750599446293,-151.0,0.00038487,30]
[366953556,1750599446324,-174.61919141,0.00038487,30]
[366953557,1750599446353,-500.0,0.00038487,30]
[366953558,1750599446381,-151.0,0.00038487,30]
[366953559,1750599446410,-151.0,0.00038487,30]
[366953560,1750599446438,-151.0,0.00038487,30]
[366953561,1750599446466,-181.08010149,0.00038487,30]
[366953562,1750599446494,-518.5,0.00038487,30]
[366953563,1750599446522,-300.0,0.00038487,30]
[366953564,1750599446548,-151.0,0.00038487,30]
[366953565,1750599446578,-151.0,0.00038487,30]
[366953566,1750599446605,-152.60265481,0.00038487,30]
[366953567,1750599446632,-151.0,0.00038487,30]
[366953568,1750599446659,-537.6845,0.00038487,30]
[366953569,1750599446688,-187.78006525,0.00038487,30]
[366953570,1750599446716,-300.0,0.00038487,30]
[366953571,1750599446744,-151.0,0.00038487,30]
[366953572,1750599446770,-156.587,0.00038487,30]
[366953573,1750599446797,-151.0,0.00038487,30]
[366953574,1750599446829,-151.0,0.00038487,30]
[366953575,1750599446855,-557.5788265,0.00038487,30]
[366953576,1750599446883,-300.0,0.00038487,30]
[366953577,1750599446909,-194.72792766,0.00038487,30]
[366953578,1750599446936,-283.09327194,0.00038487,30]
[366953579,1750599446963,-162.380719,0.00038487,30]
[366953580,1750599446989,-151.0,0.00038487,30]
[366953581,1750599447016,-151.0,0.00038487,30]
[366953582,1750599447047,-300.0,0.00038487,30]
[366953583,1750599447078,-578.20924308,0.00038487,30]
[366953584,1750599447105,-151.0,0.00038487,30]
[366953585,1750599447133,-168.3888056,0.00038487,30]
[366953586,1750599447161,-151.0,0.00038487,30]
[366953587,1750599447190,-300.0,0.00038487,30]
[366953588,1750599447220,-201.93286099,0.00038487,30]
[366953589,1750599447247,-599.60298507,0.00038487,30]
[366953590,1750599447274,-151.0,0.00038487,30]
[366953591,1750599447302,-174.61919141,0.00038487,30]
[366953592,1750599447334,-151.0,0.00038487,30]
[366953593,1750599447365,-300.0,0.00038487,30]
[366953594,1750599447395,-151.0,0.00038487,30]
[366953595,1750599447423,-209.40437684,0.00038487,30]
[366953596,1750599447452,-621.78829552,0.00038487,30]
[366953597,1750599447484,-181.08010149,0.00038487,30]
[366953598,1750599447513,-151.0,0.00038487,30]
[366953599,1750599447542,-151.0,0.00038487,30]
[366953600,1750599447576,-300.0,0.00038487,30]
[366953601,1750599447605,-644.79446245,0.00038487,30]
[366953602,1750599447634,-151.0,0.00038487,30]
[366953603,1750599447664,-217.15233878,0.00038487,30]
[366953604,1750599447693,-225.18697532,0.00038487,30]
[366953605,1750599447721,-151.0,0.00038487,30]
[366953606,1750599447752,-300.0,0.00038487,30]
[366953607,1750599447780,-233.51889341,0.00038487,30]
[366953608,1750599447810,-300.0,0.00038487,30]
[366953609,1750599447843,-242.15909246,0.00038487,30]
[366953610,1750599447874,-300.0,0.00038487,30]
[366953611,1750599447902,-251.11897888,0.00038487,30]
[366953612,1750599447930,-151.0,0.00038487,30]
[366953613,1750599447958,-500.0,0.00038487,30]
[366953614,1750599447990,-300.0,0.00038487,30]
[366953615,1750599448019,-151.0,0.00038487,30]
[366953616,1750599448051,-260.4103811,0.00038487,30]
[366953617,1750599448086,-151.0,0.00038487,30]
[366953618,1750599448113,-500.0,0.00038487,30]
[366953619,1750599448145,-300.0,0.00038487,30]
[366953620,1750599448173,-270.0455652,0.00038487,30]
[366953621,1750599448200,-151.0,0.00038487,30]
[366953622,1750599448227,-500.0,0.00038487,30]
[366953623,1750599448256,-400.0,0.00038487,30]
[366953624,1750599448284,-280.03725112,0.00038487,30]
[366953625,1750599448311,-151.0,0.00038487,30]
[366953626,1750599448364,-500.0,0.00038487,30]
[366953627,1750599448413,-290.39862941,0.00038487,30]
[366953628,1750599448459,-500.0,0.00038487,30]
[366953629,1750599448528,-151.0,0.00038487,30]
[366953630,1750599448585,-500.0,0.00038487,30]
[366953631,1750599448638,-151.0,0.00038487,30]
[366953632,1750599448684,-301.1433787,0.00038487,30]
[366953633,1750599448725,-555.0803167,0.00038487,30]
[366953634,1750599448769,-151.0,0.00038487,30]
[366953635,1750599448835,-500.0,0.00038487,30]
[366953636,1750599448885,-151.0,0.00038487,30]
[366953637,1750599448938,-200.0,0.00038487,30]
[366953638,1750599448994,-500.0,0.00038487,30]
[366953639,1750599449048,-500.0,0.00038487,30]
[366953640,1750599449102,-500.0,0.00038487,30]
[366953641,1750599449150,-151.0,0.00038487,30]
[366953642,1750599449196,-500.0,0.00038487,30]
[366953643,1750599449241,-177.15347268,0.00038487,30]
[366953644,1750599449283,-500.0,0.00038487,30]
[366953645,1750599449332,-500.0,0.00038487,30]
[366953646,1750599449376,-81258.02262873,0.000385,120]
[366953647,1750599449432,-499999.0,0.000385,120]
[366953648,1750599449481,-504.0,0.0003855,120]
[366953649,1750599449531,-1311.49,0.00038587,30]
[366953650,1750599449581,-1311.49,0.00038587,30]
[366953651,1750599449625,-1413.63798,0.00038688,30]
[366953652,1750599449667,-1688.98,0.000388,60]
[366953653,1750599449717,-1311.49,0.00038861,30]
[366953654,1750599449760,-1311.49,0.00038861,30]
[366953655,1750599449812,-2261.74679067,0.00038866,39]
[366953656,1750599449857,-600.0,0.00038876,60]
[366953657,1750599449899,-1573.83719853,0.000389,120]
[366953658,1750599449940,-439.07219985,0.00038904,90]
[366953659,1750599449981,-216.07,0.0003898,120]
[366953660,1750599450022,-159.08,0.0003898,120]
[366953661,1750599450065,-578.75369663,0.00038987,30]
[366953662,1750599450111,-1517.07984794,0.0003899,43]
[366953663,1750599450174,-212.0,0.0003899,120]
[366953664,1750599450228,-156.0,0.0003899,120]
[366953665,1750599450278,-373.03807603,0.00039,120]
[366953666,1750599450324,-1748.31118078,0.00039,120]
[366953667,1750599450368,-1143.70649877,0.00039,120]
[366953668,1750599450412,-227.65313084,0.00039,120]
[366953669,1750599450467,-9138.0,0.00039,120]
[366953670,1750599450522,-369.0,0.00039,30]
[366953671,1750599450578,-486.83534565,0.00039005,60]
[366953672,1750599450632,-203.0,0.00039013,31]
[366953673,1750599450679,-1413.63798,0.00039088,30]
[366953674,1750599450724,-3233.16703203,0.0003913,60]
[366953675,1750599450769,-1311.49,0.00039135,30]
[366953676,1750599450813,-1311.49,0.00039135,30]
[366953677,1750599450863,-500.0,0.00039178,120]
[366953678,1750599450904,-150.0,0.00039178,120]
[366953679,1750599450956,-150.0,0.00039178,120]
[366953680,1750599451004,-500.0,0.00039178,102]
[366953681,1750599451052,-150.0,0.00039178,120]
[366953682,1750599451100,-500.0,0.00039178,120]
[366953683,1750599451147,-150.0,0.00039178,120]
[366953684,1750599451190,-500.0,0.00039178,120]
[366953685,1750599451236,-150.0,0.00039178,120]
[366953686,1750599451276,-150.0,0.00039178,120]
[366953687,1750599451307,-150.47883528,0.00039178,120]
[366953688,1750599451339,-500.0,0.00039178,120]
[366953689,1750599451369,-500.0,0.00039178,120]
[366953690,1750599451399,-150.0,0.00039178,120]
[366953691,1750599451428,-219.52548528,0.00039178,120]
[366953692,1750599451457,-150.0,0.00039178,120]
[366953693,1750599451487,-150.0,0.00039178,120]
[366953694,1750599451515,-500.0,0.00039178,120]
[366953695,1750599451542,-500.0,0.00039178,120]
[366953696,1750599451571,-198.89188358,0.00039178,120]
[366953697,1750599451599,-202.757602,0.00039178,120]
[366953698,1750599451626,-500.0,0.00039178,120]
[366953699,1750599451654,-500.0,0.00039178,120]
[366953700,1750599451681,-150.0,0.00039178,120]
[366953701,1750599452563,-150.0,0.00039178,120]
[366953702,1750599452662,-500.0,0.00039178,120]
[366953703,1750599452690,-150.0,0.00039178,120]
[366953704,1750599452718,-150.0,0.00039178,120]
[366953705,1750599452746,-195.02812197,0.00039178,120]
[366953706,1750599452775,-150.0,0.00039178,120]
[366953707,1750599452803,-500.0,0.00039178,120]
[366953708,1750599452833,-500.0,0.00039178,120]
[366953709,1750599452861,-500.0,0.00039178,120]
[366953710,1750599452889,-150.0,0.00039178,120]
[366953711,1750599452916,-150.32771533,0.00039178,120]
[366953712,1750599452944,-500.0,0.00039178,120]
[366953713,1750599452971,-150.0,0.00039178,120]
[366953714,1750599452998,-150.0,0.00039178,60]
[366953715,1750599453025,-150.0,0.00039178,120]
[366953716,1750599453056,-153.5086134,0.00039178,120]
[366953717,1750599453094,-150.89217555,0.00039178,120]
[366953718,1750599453124,-150.0,0.00039178,120]
[366953719,1750599453155,-150.0,0.00039178,120]
[366953720,1750599453184,-177.62449026,0.00039178,120]
[366953721,1750599453213,-935.0,0.00039178,120]
[366953722,1750599453242,-500.0,0.00039178,120]
[366953723,1750599453270,-500.0,0.00039178,120]
[366953724,1750599453299,-150.0,0.00039178,120]
[366953725,1750599453331,-500.0,0.00039178,120]
[366953726,1750599453361,-500.0,0.00039205,120]
[366953727,1750599453392,-237.37652561,0.00039205,120]
[366953728,1750599453422,-150.0,0.00039205,120]
[366953729,1750599453452,-500.0,0.00039205,102]
[366953730,1750599453482,-150.0,0.00039205,120]
[366953731,1750599453513,-500.0,0.00039205,120]
[366953732,1750599453542,-150.0,0.00039205,120]
[366953733,1750599453578,-500.0,0.00039205,120]
[366953734,1750599453608,-150.0,0.00039205,120]
[366953735,1750599453639,-151.71457807,0.00039205,120]
[366953736,1750599453670,-500.0,0.00039205,120]
[366953737,1750599453702,-646.81531747,0.00039205,120]
[366953738,1750599453732,-150.0,0.00039205,120]
[366953739,1750599453765,-150.0,0.00039205,120]
[366953740,1750599453796,-150.0,0.00039205,120]
[366953741,1750599453834,-500.99245321,0.00039205,120]
[366953742,1750599453865,-500.0,0.00039205,120]
[366953743,1750599453895,-500.68412876,0.00039205,120]
[366953744,1750599453925,-567.82057631,0.00039205,120]
[366953745,1750599453954,-171.84670806,0.00039205,120]
[366953746,1750599453981,-150.46444261,0.00039205,120]
[366953747,1750599454009,-500.0,0.00039205,120]
[366953748,1750599454040,-150.0,0.00039205,120]
[366953749,1750599454068,-150.0,0.00039205,120]
[366953750,1750599454103,-150.0,0.00039205,120]
[366953751,1750599454133,-500.0,0.00039205,120]
[366953752,1750599454162,-500.0,0.00039205,120]
[366953753,1750599454191,-500.0,0.00039205,120]
[366953754,1750599454219,-152.53157968,0.00039205,120]
[366953755,1750599454249,-500.0,0.00039205,120]
[366953756,1750599454278,-150.0,0.00039205,120]
[366953757,1750599454308,-150.8984385,0.00039205,60]
[366953758,1750599454343,-150.55245506,0.00039205,120]
[366953759,1750599454375,-150.0,0.00039205,120]
[366953760,1750599454405,-150.0,0.00039205,120]
[366953761,1750599454435,-935.0,0.00039205,120]
[366953762,1750599454464,-605.2209032,0.00039205,120]
[366953763,1750599454495,-521.14021212,0.00039205,120]
[366953764,1750599454525,-150.0,0.00039205,120]
[366953765,1750599454554,-500.0,0.00039205,120]
[366953766,1750599454587,-500.0,0.00039233,120]
[366953767,1750599454616,-254.24211024,0.00039233,120]
[366953768,1750599454646,-153.36629011,0.00039233,102]
[366953769,1750599454674,-150.92398456,0.00039233,120]
[366953770,1750599454702,-156.81651833,0.00039233,120]
[366953771,1750599454731,-150.0,0.00039233,120]
[366953772,1750599454760,-150.0,0.00039233,120]
[366953773,1750599454788,-152.32686889,0.00039233,120]
[366953774,1750599454817,-200.53592135,0.00039233,120]
[366953775,1750599454850,-205.10530243,0.00039233,120]
[366953776,1750599454879,-150.47888711,0.00039233,120]
[366953777,1750599454908,-500.0,0.00039233,120]
[366953778,1750599454937,-180.9730098,0.00039233,120]
[366953779,1750599454965,-150.0,0.00039233,120]
[366953780,1750599454993,-150.0,0.00039233,120]
[366953781,1750599455022,-150.9151092,0.00039233,120]
[366953782,1750599455052,-500.0,0.00039233,120]
[366953783,1750599455082,-402.79956233,0.00039233,120]
[366953784,1750599455111,-500.0,0.00039233,120]
[366953785,1750599455143,-500.0,0.00039233,120]
[366953786,1750599455172,-150.0,0.00039233,120]
[366953787,1750599455201,-150.0,0.00039233,120]
[366953788,1750599455229,-150.0,0.00039233,120]
[366953789,1750599455257,-935.0,0.00039233,120]
[366953790,1750599455286,-231.28295343,0.00039233,120]
[366953791,1750599455313,-500.0,0.00039233,120]
[366953792,1750599455346,-500.0,0.0003926,120]
[366953793,1750599455375,-201.75969281,0.0003926,120]
[366953794,1750599455404,-351.44140873,0.0003926,120]
[366953795,1750599455434,-150.0,0.0003926,120]
[366953796,1750599455462,-150.48351388,0.0003926,120]
[366953797,1750599455492,-221.89726734,0.0003926,120]
[366953798,1750599455520,-508.57790422,0.0003926,120]
[366953799,1750599455832,-500.0,0.0003926,120]
[366953800,1750599455862,-150.0,0.0003926,120]
[366953801,1750599455891,-200.0,0.0003926,120]
[366953802,1750599455921,-150.0,0.0003926,120]
[366953803,1750599455950,-935.0,0.0003926,120]
[366953804,1750599455979,-500.0,0.0003926,120]
[366953805,1750599456006,-500.0,0.00039288,120]
[366953806,1750599456035,-200.79857448,0.00039288,120]
[366953807,1750599456065,-500.0,0.00039288,120]
[366953808,1750599456098,-257.26117849,0.00039288,120]
[366953809,1750599456128,-935.0,0.00039288,120]
[366953810,1750599456157,-500.0,0.00039288,120]
[366953811,1750599456185,-1413.63798,0.00039288,30]
[366953812,1750599456214,-500.0,0.00039315,120]
[366953813,1750599456243,-500.0,0.00039315,120]
[366953814,1750599456271,-935.0,0.00039315,120]
[366953815,1750599456300,-500.0,0.00039315,120]
[366953816,1750599456330,-500.0,0.00039342,120]
[366953817,1750599456359,-500.0,0.00039342,120]
[366953818,1750599456388,-935.0,0.00039342,120]
[366953819,1750599456417,-500.0,0.00039342,120]
[366953820,1750599456447,-500.0,0.0003937,120]
[366953821,1750599456477,-500.0,0.0003937,120]
[366953822,1750599456507,-935.0,0.0003937,120]
[366953823,1750599456537,-500.0,0.0003937,120]
[366953824,1750599456568,-500.0,0.00039397,120]
[366953825,1750599456603,-500.0,0.00039397,120]
[366953826,1750599456633,-935.0,0.00039397,120]
[366953827,1750599456662,-339.59044936,0.00039397,120]
[366953828,1750599456691,-600.0,0.00039424,60]
[366953829,1750599456722,-500.0,0.00039425,120]
[366953830,1750599456751,-359.49837882,0.00039425,120]
[366953831,1750599456780,-935.0,0.00039425,120]
[366953832,1750599456808,-2000.0,0.0003944,43]
[366953833,1750599456839,-500.0,0.00039452,120]
[366953834,1750599456867,-935.0,0.00039452,120]
[366953835,1750599456895,-500.0,0.00039479,120]
[366953836,1750599456924,-935.0,0.00039479,120]
[366953837,1750599456952,-1413.63798,0.00039488,30]
[366953838,1750599456981,-500.0,0.00039507,120]
[366953839,1750599457009,-935.0,0.00039507,120]
[366953840,1750599457039,-500.0,0.00039534,120]
[366953841,1750599457071,-935.0,0.00039534,120]
[366953842,1750599457105,-150.0,0.00039536,120]
[366953843,1750599457137,-500.0,0.00039562,120]
[366953844,1750599457165,-935.0,0.00039562,120]
[366953845,1750599457195,-150.0,0.00039569,120]
[366953846,1750599457224,-500.0,0.00039589,120]
[366953847,1750599457252,-935.0,0.00039589,120]
[366953848,1750599457281,-150.0,0.00039615,120]
[366953849,1750599457313,-639.12442911,0.00039616,120]
[366953850,1750599457346,-935.0,0.00039616,120]
[366953851,1750599457387,-2261.74679067,0.00039624,41]
[366953852,1750599457415,-935.0,0.00039644,120]
[366953853,1750599457443,-935.0,0.00039671,120]
[366953854,1750599457471,-1413.63798,0.00039688,30]
[366953855,1750599457498,-935.0,0.00039699,120]
[366953856,1750599457525,-935.0,0.00039726,120]
[366953857,1750599457559,-5522.0,0.00039739,117]
[366953858,1750599457590,-419.33067736,0.0003975,30]
[366953859,1750599457617,-935.0,0.00039753,120]
[366953860,1750599457643,-2025.0,0.0003978,43]
[366953861,1750599457670,-935.0,0.00039781,120]
[366953862,1750599457697,-948.78596966,0.00039808,120]
[366953863,1750599457724,-1413.63798,0.00039888,30]
[366953864,1750599457750,-1842.11477804,0.000399,120]
[366953865,1750599457776,-206.0,0.0003993,30]
[366953866,1750599457803,-1500.0,0.00039972,60]
[366953867,1750599457831,-600.0,0.00039972,60]
[366953868,1750599457857,-1000.0,0.0003999,120]
[366953869,1750599457883,-360.78786889,0.00039998,30]
[366953870,1750599457909,-410.63450813,0.00039999,31]
[366953871,1750599457935,-355.81527108,0.00039999,31]
[366953872,1750599458051,-500.0,0.00039999,31]
[366953873,1750599458082,-500.0,0.00039999,31]
[366953874,1750599458108,-578.3973194,0.00039999,31]
[366953875,1750599458136,-500.0,0.00039999,31]
[366953876,1750599458164,-500.0,0.00039999,31]
[366953877,1750599458192,-500.0,0.00039999,31]
[366953878,1750599458220,-500.0,0.00039999,31]
[366953879,1750599458249,-383.79827675,0.00039999,31]
[366953880,1750599458277,-500.0,0.00039999,31]
[366953881,1750599458304,-500.0,0.00039999,31]
[366953882,1750599458334,-500.0,0.00039999,31]
[366953883,1750599458361,-286.34271587,0.00039999,31]
[366953884,1750599458390,-500.0,0.00039999,31]
[366953885,1750599458419,-500.0,0.00039999,31]
[366953886,1750599458446,-597.04962498,0.00039999,31]
[366953887,1750599458476,-500.0,0.00039999,31]
[366953888,1750599458506,-500.0,0.00039999,31]
[366953889,1750599458534,-500.0,0.00039999,31]
[366953890,1750599458564,-500.0,0.00039999,31]
[366953891,1750599458596,-500.0,0.00039999,31]
[366953892,1750599458625,-315.50226087,0.00039999,31]
[366953893,1750599458654,-500.0,0.00039999,31]
[366953894,1750599458682,-500.0,0.00039999,31]
[366953895,1750599458711,-500.0,0.00039999,31]
[366953896,1750599458739,-500.0,0.00039999,31]
[366953897,1750599458767,-500.0,0.00039999,31]
[366953898,1750599458795,-500.0,0.00039999,31]
[366953899,1750599458822,-500.0,0.00039999,31]
[366953900,1750599458851,-500.0,0.00039999,31]
[366953901,1750599458879,-500.0,0.00039999,31]
[366953902,1750599458906,-3784.07828803,0.00039999,31]
[366953903,1750599458933,-500.0,0.00039999,31]
[366953904,1750599458960,-500.0,0.00039999,31]
[366953905,1750599458987,-500.0,0.00039999,31]
[366953906,1750599459015,-500.0,0.00039999,31]
[366953907,1750599459044,-500.0,0.00039999,31]